bitfinex/quotes_SOLUSD_20251212
["timestamp","ask_amount","ask_price","bid_price","bid_amount"]
[1765508199368,0.7,137.38,137.35,16.79043856]
[1765508200170,0.7,137.38,137.35,16.09043856]
[1765508200955,0.7,137.38,137.35,16.79043856]
[1765508201177,0.7,137.38,137.35,16.09043856]
[1765508201561,0.7,137.38,137.35,16.79043856]
[1765508201875,0.7,137.38,137.35,16.09043856]
[1765508202180,7.97911003,137.38,137.35,8.80994492]
[1765508202567,0.7,137.37,137.35,8.80994492]
[1765508208587,7.98909536,137.38,137.35,9.51994492]
[1765508208784,0.71,137.37,137.35,8.80994492]
[1765508209589,0.71,137.37,137.35,13.2596503]
[1765508211390,0.71,137.37,137.35,8.80994492]
[1765508211790,0.71,137.37,137.35,13.2596503]
[1765508212894,0.71,137.37,137.35,13.26210519]
[1765508214087,0.71,137.37,137.35,8.80994492]
[1765508214499,0.71,137.37,137.35,13.26210519]
[1765508214999,0.71,137.37,137.35,8.80994492]
[1765508216793,15.94964049,137.37,137.31,8.80994492]
[1765508217093,20.40180076,137.37,137.33,8.80994492]
[1765508217307,0.71,137.36,137.33,8.80994492]
[1765508218997,7.99024385,137.36,137.33,8.80994492]
[1765508219383,0.71,137.35,137.33,8.80994492]
[1765508220095,0.71,137.35,137.32,9.09426806]
[1765508220995,0.71,137.35,137.32,9.80426806]
[1765508221197,0.71,137.35,137.32,20.82845691]
[1765508221375,0.71,137.35,137.32,16.37629664]
[1765508221697,0.71,137.35,137.32,21.53845691]
[1765508221901,7.99024385,137.36,137.33,0.71]
[1765508225795,0.71,137.35,137.32,17.08629664]
[1765508226398,0.71,137.35,137.32,21.53845691]
[1765508227305,0.71,137.35,137.32,9.09426806]
[1765508228005,7.99072064,137.35,137.32,9.80426806]
[1765508228386,0.71,137.34,137.32,9.80426806]
[1765508228996,0.71,137.35,137.32,9.80426806]
[1765508231205,0.71,137.35,137.32,11.12762235]
[1765508231413,0.71,137.35,137.33,8.80994492]
[1765508234110,7.99081478,137.35,137.3,13.8970912]
[1765508234413,0.68,137.34,137.31,8.80994492]
[1765508235690,7.28031848,137.36,137.33,8.80994492]
[1765508235906,8.00031848,137.36,137.33,8.80994492]
[1765508236097,0.72,137.35,137.33,8.80994492]
[1765508237006,8.00095571,137.35,137.33,8.80994492]
[1765508238617,7.28095571,137.35,137.33,8.80994492]
[1765508238814,0.72,137.34,137.31,8.80994492]
[1765508239289,0.72,137.34,137.31,9.48994492]
[1765508239493,7.28095571,137.35,137.33,8.80994492]
[1765508240118,0.72,137.34,137.33,8.80994492]
[1765508240814,0.72,137.35,137.33,8.80994492]
[1765508243615,8.00080969,137.35,137.33,8.80994492]
[1765508244434,7.28080969,137.35,137.33,9.48994492]
[1765508244725,0.72,137.35,137.33,8.80994492]
[1765508245320,8.00013977,137.36,137.33,9.48994492]
[1765508245508,0.72,137.35,137.33,8.80994492]
[1765508246921,8.00080565,137.35,137.33,8.80994492]
[1765508247318,7.28080565,137.35,137.33,8.80994492]
[1765508247623,0.72,137.34,137.33,8.80994492]
[1765508248513,0.72,137.34,137.31,3.53119936]
[1765508248716,0.72,137.34,137.31,0.96432314]
[1765508248920,0.72,137.34,137.31,9.09426806]
[1765508249123,8.00133657,137.34,137.31,8.80994492]
[1765508249429,8.00133657,137.34,137.31,9.48994492]
[1765508249624,0.72,137.33,137.31,9.48994492]
[1765508251242,25.48123208,137.36,137.31,18.94392783]
[1765508251531,0.72,137.35,137.33,8.80994492]
[1765508252739,8.00077702,137.35,137.33,8.80994492]
[1765508253539,0.72,137.34,137.3,12.54114428]
[1765508254040,0.72,137.34,137.3,19.82441362]
[1765508254530,0.72,137.34,137.31,0.68]
[1765508256110,8.00121164,137.34,137.31,3.53119936]
[1765508256432,8.00121164,137.34,137.31,0.68]
[1765508256621,0.72,137.33,137.31,3.53119936]
[1765508257533,0.72,137.33,137.32,8.80994492]
[1765508261234,0.72,137.33,137.31,3.53119936]
[1765508261811,0.72,137.33,137.32,8.80994492]
[1765508262009,0.72,137.34,137.32,8.80994492]
[1765508263422,8.00131671,137.34,137.32,8.80994492]
[1765508263624,8.00131671,137.34,137.31,8.80994492]
[1765508263821,0.68,137.33,137.31,8.80994492]
[1765508266621,8.66,137.34,137.31,12.37103135]
[1765508266819,0.68,137.34,137.31,18.46008735]
[1765508267007,0.68,137.34,137.31,17.75008735]
[1765508267209,0.68,137.34,137.32,0.71]
[1765508269239,0.68,137.34,137.32,3.56108643]
[1765508270616,0.68,137.34,137.32,2.85108643]
[1765508271339,0.68,137.34,137.32,3.56108643]
[1765508271846,7.96161377,137.34,137.31,8.80994492]
[1765508272148,29.01570005,137.34,137.3,0.2]
[1765508272437,0.68,137.33,137.3,0.2]
[1765508273160,7.96161377,137.34,137.3,0.91]
[1765508273318,0.68,137.34,137.32,8.80994492]
[1765508277548,7.28083581,137.35,137.32,2.85108643]
[1765508277731,7.96083581,137.35,137.32,3.56108643]
[1765508279054,7.96083581,137.35,137.32,0.71]
[1765508280158,15.9402549,137.36,137.32,0.71]
[1765508280651,15.2602549,137.36,137.32,0.71]
[1765508280837,0.68,137.35,137.32,0.71]
[1765508282055,7.96075927,137.35,137.32,0.71]
[1765508283239,7.28075927,137.35,137.32,0.71]
[1765508283548,0.68,137.34,137.33,8.80994492]
[1765508286960,7.96119994,137.34,137.31,14.82771959]
[1765508287143,7.96119994,137.34,137.32,8.80994492]
[1765508287460,0.68,137.33,137.32,8.80994492]
[1765508289464,7.96119994,137.34,137.32,8.80994492]
[1765508290069,0.68,137.33,137.32,8.80994492]
[1765508292551,7.96173013,137.33,137.3,9.00994492]
[1765508292852,12.41673624,137.33,137.3,9.00994492]
[1765508293042,0.72,137.32,137.3,9.00994492]
[1765508293662,8.00232814,137.32,137.3,9.00994492]
[1765508294142,0.72,137.31,137.3,9.00994492]
[1765508298764,0.72,137.31,137.3,0.2]
[1765508298962,12.45779687,137.31,137.3,0.2]
[1765508299972,20.43779687,137.31,137.3,0.2]
[1765508301248,20.43779687,137.31,137.26,9.72994492]
[1765508301249,103.2,137.3,137.26,0.2]
[1765508301570,4.45500611,137.27,137.26,0.2]
[1765508301965,5.16500611,137.27,137.26,0.2]
[1765508303463,12.44991905,137.27,137.26,0.2]
[1765508316289,16.90492516,137.27,137.26,0.2]
[1765508316481,25.71487008,137.27,137.26,0.2]
[1765508317298,13.0470912,137.26,137.21,0.2]
[1765508317506,4.46385883,137.22,137.21,0.2]
[1765508318177,11.75142623,137.22,137.21,0.2]
[1765508319391,12.46142623,137.22,137.21,0.2]
[1765508320290,7.2875674,137.22,137.21,0.92]
[1765508320495,7.28746785,137.23,137.21,0.92]
[1765508320673,7.28746785,137.23,137.22,0.72]
[1765508321482,7.28650539,137.24,137.22,0.72]
[1765508322204,7.99650539,137.24,137.22,0.72]
[1765508322377,12.46036422,137.24,137.22,0.72]
[1765508322572,0.71,137.23,137.21,0.2]
[1765508322972,11.75036422,137.24,137.21,0.88]
[1765508323177,7.96650539,137.24,137.21,0.88]
[1765508323979,12.43036422,137.24,137.21,0.88]
[1765508327696,7.96650539,137.24,137.21,0.88]
[1765508328299,7.28650539,137.24,137.22,0.68]
[1765508330297,7.28650539,137.24,137.21,0.2]
[1765508330499,4.46385883,137.22,137.21,0.88]
[1765508330901,5.14385883,137.23,137.21,0.2]
[1765508331485,7.2875674,137.22,137.21,0.88]
[1765508331684,7.2875674,137.22,137.21,0.2]
[1765508332808,7.28716379,137.23,137.21,0.88]
[1765508333585,11.75102262,137.23,137.21,0.88]
[1765508334392,7.28716379,137.23,137.21,0.88]
[1765508335511,0.68,137.22,137.21,0.2]
[1765508336086,7.96716379,137.23,137.21,0.2]
[1765508338600,7.28716379,137.23,137.21,0.2]
[1765508338909,0.68,137.22,137.21,0.2]
[1765508339612,12.43102262,137.23,137.21,0.2]
[1765508340615,12.43102262,137.23,137.21,9.00994492]
[1765508341609,5.14385883,137.27,137.23,8.80994492]
[1765508341917,13.12385883,137.27,137.23,8.80994492]
[1765508342213,0.68,137.26,137.23,9.48994492]
[1765508342912,7.28597449,137.25,137.23,9.48994492]
[1765508353807,7.97597449,137.25,137.23,9.48994492]
[1765508354424,3.54499177,137.24,137.21,9.00994492]
[1765508354623,2.85499177,137.23,137.21,9.00994492]
[1765508354818,2.85499177,137.22,137.21,0.2]
[1765508355014,3.54499177,137.22,137.21,0.2]
[1765508356028,10.83255917,137.22,137.21,0.2]
[1765508356609,7.9775674,137.22,137.21,0.2]
[1765508363231,10.83255917,137.22,137.21,0.2]
[1765508364334,7.9775674,137.22,137.21,0.2]
[1765508364640,121.4141325,137.26,137.22,8.80994492]
[1765508364809,0.66,137.27,137.22,11.66493669]
[1765508365016,10.83499177,137.28,137.24,8.80994492]
[1765508365228,0.66,137.27,137.24,8.80994492]
[1765508365433,3.51499177,137.27,137.24,8.80994492]
[1765508365837,7.28544368,137.26,137.24,8.80994492]
[1765508366040,7.94544368,137.26,137.24,8.80994492]
[1765508368530,0.66,137.25,137.22,8.80994492]
[1765508368852,0.66,137.25,137.22,9.52994492]
[1765508369227,15.26544368,137.26,137.24,8.80994492]
[1765508369452,7.28544368,137.26,137.24,8.80994492]
[1765508369624,7.28544368,137.26,137.24,9.52994492]
[1765508371037,0.66,137.26,137.24,8.80994492]
[1765508372484,7.945672,137.26,137.24,8.80994492]
[1765508374229,7.28491294,137.27,137.25,0.72]
[1765508374424,7.28491294,137.27,137.25,3.57433571]
[1765508375042,7.28491294,137.27,137.25,0.72]
[1765508376119,7.94491294,137.27,137.24,9.52994492]
[1765508379857,0.66,137.26,137.24,9.52994492]
[1765508380455,7.94491294,137.27,137.24,9.52994492]
[1765508384174,0.67,137.26,137.22,8.69]
[1765508384350,0.67,137.26,137.23,8.80994492]
[1765508384669,2.85433571,137.24,137.21,0.2]
[1765508384847,2.85433571,137.22,137.21,0.2]
[1765508385264,0.67,137.22,137.21,0.2]
[1765508385471,0.67,137.24,137.22,8.80994492]
[1765508386873,7.95660541,137.24,137.21,0.2]
[1765508387178,10.81094112,137.24,137.21,9.00994492]
[1765508387471,0.67,137.23,137.21,9.00994492]
[1765508387775,112.00994492,137.27,137.21,9.00994492]
[1765508387776,103.2,137.27,137.22,11.1362029]
[1765508387972,0.67,137.28,137.24,8.80994492]
[1765508388170,0.67,137.27,137.24,8.80994492]
[1765508388471,0.67,137.27,137.24,9.51994492]
[1765508388679,7.95500768,137.27,137.24,9.51994492]
[1765508393988,0.67,137.26,137.24,8.80994492]
[1765508396086,7.95500768,137.27,137.24,9.51994492]
[1765508396387,7.95500768,137.27,137.25,0.71]
[1765508396574,7.95500768,137.27,137.24,9.51994492]
[1765508396897,7.28451365,137.28,137.25,0.71]
[1765508397103,0.67,137.27,137.25,0.71]
[1765508397402,0.67,137.27,137.24,7.99647314]
[1765508397970,3.52431719,137.27,137.22,9.09426806]
[1765508398188,3.52431719,137.27,137.24,0.71]
[1765508398803,10.80964555,137.27,137.24,0.71]
[1765508400420,7.95532836,137.27,137.24,0.71]
[1765508400589,10.80880665,137.28,137.25,8.80994492]
[1765508400784,0.67,137.27,137.25,8.80994492]
[1765508400993,15.26279076,137.31,137.27,8.80994492]
[1765508401297,15.26279076,137.31,137.26,8.80994492]
[1765508401298,2.85431719,137.28,137.26,8.80994492]
[1765508401700,3.52431719,137.28,137.26,8.80994492]
[1765508402809,2.85431719,137.29,137.26,7.99512819]
[1765508403309,10.80781368,137.3,137.26,7.99512819]
[1765508403488,10.80781368,137.3,137.27,0.71]
[1765508403886,10.13781368,137.3,137.27,0.71]
[1765508404107,0.67,137.29,137.26,7.99512819]
[1765508404603,2.85431719,137.27,137.21,7.00872495]
[1765508404807,2.85431719,137.27,137.22,16.09731294]
[1765508405012,3.52431719,137.28,137.22,19.66163013]
[1765508405180,3.52431719,137.28,137.24,8.80994492]
[1765508405583,0.67,137.28,137.25,0.71]
[1765508405898,103.2,137.29,137.26,8.80994492]
[1765508406111,103.87,137.29,137.26,0.71]
[1765508406296,106.72431719,137.29,137.26,0.71]
[1765508406898,106.72431719,137.29,137.26,0.21]
[1765508409021,103.87,137.29,137.26,7.49537064]
[1765508409594,0.67,137.29,137.26,7.49537064]
[1765508410721,2.85431719,137.31,137.26,7.49537064]
[1765508410902,0.67,137.3,137.26,7.49537064]
[1765508411735,2.85431719,137.29,137.25,8.95210649]
[1765508411897,4.46047108,137.27,137.23,7.28663676]
[1765508412091,4.46047108,137.27,137.23,16.09658168]
[1765508412298,4.46047108,137.25,137.22,8.3]
[1765508412806,12.41611683,137.26,137.23,8.80994492]
[1765508413101,0.72,137.25,137.23,8.80994492]
[1765508414217,0.72,137.27,137.24,0.32]
[1765508414594,0.72,137.27,137.23,16.09696742]
[1765508414798,0.72,137.27,137.24,0.32]
[1765508417223,0.72,137.28,137.24,7.89058654]
[1765508417726,0.72,137.29,137.25,21.570416]
[1765508417928,0.72,137.29,137.26,0.32]
[1765508419717,7.28347938,137.3,137.26,0.32]
[1765508419924,0.72,137.29,137.26,0.32]
[1765508424739,12.46228872,137.29,137.25,24.39560529]
[1765508425069,4.45838076,137.27,137.24,9.09426806]
[1765508425216,4.45838076,137.27,137.24,9.41426806]
[1765508425416,0.72,137.27,137.24,9.41426806]
[1765508426434,4.45838076,137.26,137.24,8.80994492]
[1765508426633,0.72,137.25,137.22,8.80994492]
[1765508426937,12.46456266,137.25,137.22,8.80994492]
[1765508427328,0.72,137.24,137.22,8.80994492]
[1765508430437,8.00652563,137.24,137.22,8.80994492]
[1765508431932,0.72,137.24,137.22,8.80994492]
[1765508432648,0.72,137.25,137.22,9.12994492]
[1765508432821,11.74398247,137.26,137.22,8.80994492]
[1765508433128,0.72,137.25,137.22,8.80994492]
[1765508433837,0.72,137.25,137.22,9.12994492]
[1765508434619,121.40998523,137.29,137.22,20.55558124]
[1765508434825,121.40998523,137.29,137.24,8.80994492]
[1765508434826,0.72,137.27,137.24,8.80994492]
[1765508435022,0.72,137.27,137.24,9.12994492]
[1765508435855,8.00531039,137.27,137.24,9.12994492]
[1765508436020,8.00531039,137.27,137.24,0.32]
[1765508436221,7.28531039,137.27,137.24,8.80994492]
[1765508436440,0.72,137.26,137.24,8.80994492]
[1765508436951,8.00550137,137.26,137.24,8.80994492]
[1765508437340,0.72,137.25,137.24,8.80994492]
[1765508437941,0.72,137.25,137.22,20.87558124]
[1765508439051,7.28491294,137.27,137.22,20.55558124]
[1765508439237,0.72,137.26,137.23,0.32]
[1765508439751,0.72,137.26,137.22,16.41720048]
[1765508439944,0.72,137.26,137.22,20.87558124]
[1765508440143,8.00549618,137.26,137.22,16.41720048]
[1765508440658,0.72,137.25,137.22,16.41720048]
[1765508441450,0.72,137.25,137.22,16.09720048]
[1765508442659,0.72,137.25,137.22,16.41720048]
[1765508443456,8.00608823,137.25,137.22,8.80994492]
[1765508443832,0.68,137.24,137.22,8.80994492]
[1765508445856,7.96652836,137.24,137.22,8.80994492]
[1765508446037,0.68,137.23,137.22,8.80994492]
[1765508446729,7.28652836,137.24,137.22,8.80994492]
[1765508446930,7.96652836,137.24,137.22,8.80994492]
[1765508448645,0.68,137.23,137.22,8.80994492]
[1765508450248,0.68,137.23,137.21,0.2]
[1765508450249,7.96703636,137.23,137.21,0.2]
[1765508453055,7.28667234,137.24,137.21,4.98190685]
[1765508453257,7.28667234,137.24,137.21,0.52]
[1765508453570,0.68,137.26,137.22,9.12994492]
[1765508453737,0.68,137.25,137.22,9.12994492]
[1765508455759,0.68,137.25,137.22,8.80994492]
[1765508457250,7.9660034,137.25,137.22,8.80994492]
[1765508457448,7.9660034,137.25,137.22,9.12994492]
[1765508458260,0.68,137.24,137.22,8.80994492]
[1765508459058,0.68,137.24,137.22,9.12994492]
[1765508459360,7.28544368,137.26,137.22,9.12994492]
[1765508459565,0.68,137.25,137.22,9.12994492]
[1765508461241,0.68,137.25,137.22,8.80994492]
[1765508461558,0.68,137.25,137.22,9.12994492]
[1765508461756,0.68,137.25,137.22,16.41747793]
[1765508462949,0.68,137.25,137.22,9.12994492]
[1765508463759,0.68,137.25,137.22,16.41748016]
[1765508464958,7.9649256,137.27,137.23,8.3]
[1765508465143,7.2849256,137.27,137.23,12.76190685]
[1765508465347,7.9649256,137.27,137.24,0.32]
[1765508466970,0.68,137.3,137.27,8.80994492]
[1765508467143,0.68,137.3,137.27,9.12994492]
[1765508467475,0.68,137.3,137.27,13.59185177]
[1765508467662,0.68,137.3,137.27,13.27185177]
[1765508467848,0.68,137.3,137.27,8.80994492]
[1765508468170,5.14190685,137.3,137.27,8.80994492]
[1765508468348,12.42562377,137.3,137.27,8.80994492]
[1765508468548,0.68,137.29,137.27,8.80994492]
[1765508468967,7.28371692,137.3,137.27,9.12994492]
[1765508469276,7.96371692,137.3,137.27,9.12994492]
[1765508469451,7.96371692,137.3,137.27,13.59185177]
[1765508469768,7.96371692,137.3,137.27,9.12994492]
[1765508469970,7.96371692,137.3,137.27,13.59185177]
[1765508470360,0.68,137.3,137.27,20.87668251]
[1765508470659,7.96236278,137.32,137.29,13.27185177]
[1765508470862,7.96236278,137.32,137.29,4.46190685]
[1765508470863,0.68,137.32,137.29,4.46190685]
[1765508471057,0.68,137.32,137.29,4.78190685]
[1765508471459,0.68,137.32,137.31,8.80994492]
[1765508471665,0.68,137.32,137.3,8.80994492]
[1765508473778,7.96229216,137.32,137.3,8.80994492]
[1765508474153,0.71,137.31,137.28,16.41427891]
[1765508474485,7.28133243,137.34,137.3,2.85222011]
[1765508474776,0.71,137.35,137.31,9.12994492]
[1765508474953,121.31179801,137.38,137.33,8.80994492]
[1765508475157,0.71,137.37,137.33,8.80994492]
[1765508475356,0.71,137.37,137.33,9.12994492]
[1765508475957,0.71,137.37,137.33,24.07163465]
[1765508476158,0.71,137.37,137.34,0.32]
[1765508476777,7.98968241,137.37,137.34,0.32]
[1765508477857,0.69,137.36,137.33,16.78994492]
[1765508478069,0.69,137.36,137.33,17.10994492]
[1765508482873,0.69,137.36,137.33,16.78994492]
[1765508483073,7.97017433,137.36,137.33,16.78994492]
[1765508483480,10.81999156,137.36,137.33,16.78994492]
[1765508483792,0.69,137.35,137.33,16.78994492]
[1765508484158,10.820555,137.35,137.31,16.78994492]
[1765508484365,7.97073777,137.35,137.28,7.28425508]
[1765508484564,2.84981723,137.32,137.29,8.80994492]
[1765508484764,0.69,137.34,137.29,8.80994492]
[1765508484986,0.69,137.33,137.29,8.80994492]
[1765508485164,2.84981723,137.32,137.29,8.80994492]
[1765508485670,25.48241232,137.35,137.31,8.80994492]
[1765508485671,7.97073777,137.35,137.31,8.80994492]
[1765508485872,0.69,137.34,137.31,8.80994492]
[1765508486077,3.53981723,137.34,137.3,0.32]
[1765508486380,10.13154736,137.33,137.29,16.0936633]
[1765508486582,10.82154736,137.33,137.29,16.4136633]
[1765508487465,10.13154736,137.33,137.29,16.4136633]
[1765508487786,0.69,137.32,137.29,16.4136633]
[1765508488393,10.13114419,137.34,137.3,0.32]
[1765508488588,7.97132696,137.34,137.3,0.32]
[1765508488886,0.69,137.33,137.3,0.32]
[1765508489899,0.69,137.33,137.31,8.80994492]
[1765508491170,0.69,137.34,137.31,9.12994492]
[1765508491891,0.69,137.34,137.31,8.80994492]
[1765508492404,7.97127603,137.34,137.31,8.80994492]
[1765508492697,0.69,137.33,137.31,8.80994492]
[1765508493076,7.28127603,137.34,137.31,8.80994492]
[1765508493280,2.84981723,137.39,137.33,2.84981723]
[1765508493480,0.69,137.37,137.33,2.84981723]
[1765508493678,0.69,137.37,137.35,8.80994492]
[1765508494599,7.96965848,137.37,137.35,8.80994492]
[1765508494797,2.84981723,137.36,137.32,7.98]
[1765508495002,2.84981723,137.35,137.31,8.80994492]
[1765508495191,3.53981723,137.35,137.31,8.80994492]
[1765508495490,3.53981723,137.34,137.31,8.80994492]
[1765508495899,0.69,137.33,137.31,8.80994492]
[1765508498072,2.84981723,137.32,137.31,8.08994492]
[1765508498279,2.84981723,137.32,137.24,0.65]
[1765508498503,2.84981723,137.27,137.24,0.65]
[1765508498797,2.84981723,137.29,137.24,0.93432314]
[1765508499015,2.84981723,137.29,137.24,0.65]
[1765508499314,0.69,137.28,137.25,0.65]
[1765508500131,0.69,137.28,137.26,8.80994492]
[1765508505205,0.69,137.28,137.23,7.98]
[1765508505206,10.82827666,137.28,137.23,7.98]
[1765508505393,10.82827666,137.28,137.24,9.50994492]
[1765508505593,0.7,137.27,137.24,9.50994492]
[1765508505998,3.55381165,137.27,137.24,8.80994492]
[1765508506398,0.7,137.26,137.24,8.80994492]
[1765508506898,3.55381165,137.26,137.23,7.98]
[1765508507103,0.7,137.25,137.23,8.80994492]
[1765508507281,0.7,137.26,137.23,9.50994492]
[1765508508994,18.21095571,137.28,137.23,9.50994492]
[1765508508995,0.7,137.29,137.25,8.80994492]
[1765508509303,0.7,137.29,137.25,11.66375657]
[1765508509511,0.7,137.29,137.25,9.50994492]
[1765508510392,0.7,137.29,137.27,8.80994492]
[1765508513016,0.7,137.3,137.27,9.50994492]
[1765508513212,0.7,137.3,137.27,17.48994492]
[1765508514312,7.98340321,137.3,137.27,16.78994492]
[1765508514513,2.85381165,137.29,137.26,8.80994492]
[1765508514703,0.7,137.29,137.26,8.80994492]
[1765508514889,0.7,137.29,137.26,9.50994492]
[1765508514890,3.55381165,137.29,137.26,9.50994492]
[1765508515092,3.55381165,137.29,137.25,7.98]
[1765508515419,7.98340321,137.3,137.26,0.7]
[1765508517526,7.98340321,137.3,137.26,3.55381165]
[1765508517809,7.98340321,137.3,137.27,0.7]
[1765508518189,7.98340321,137.3,137.27,9.50994492]
[1765508522229,3.55381165,137.29,137.27,8.80994492]
[1765508522527,10.83801312,137.29,137.27,8.80994492]
[1765508522701,0.7,137.28,137.27,8.80994492]
[1765508522899,7.28420147,137.29,137.27,8.80994492]
[1765508523103,7.28351205,137.3,137.27,9.50994492]
[1765508523410,7.98351205,137.3,137.27,9.50994492]
[1765508525126,7.28351205,137.3,137.27,9.50994492]
[1765508525325,7.98399745,137.29,137.27,8.80994492]
[1765508527214,0.7,137.28,137.27,8.80994492]
[1765508528230,7.98399745,137.29,137.27,8.80994492]
[1765508529402,10.8378091,137.29,137.27,8.80994492]
[1765508530160,10.83772432,137.29,137.27,8.80994492]
[1765508531930,3.55372687,137.28,137.23,8.80994492]
[1765508532133,2.85372687,137.26,137.23,8.80994492]
[1765508532733,0.7,137.28,137.25,8.80994492]
[1765508532912,7.96399745,137.29,137.27,8.80994492]
[1765508534649,7.96399745,137.29,137.25,20.55425371]
[1765508534814,7.96399745,137.29,137.27,8.80994492]
[1765508535160,7.2832998,137.31,137.27,8.80994492]
[1765508535317,7.2832998,137.31,137.29,8.80994492]
[1765508535821,7.2832998,137.31,137.29,9.47994492]
[1765508536440,7.96241982,137.32,137.29,9.47994492]
[1765508536739,7.96241982,137.32,137.29,13.93849275]
[1765508538938,7.96241982,137.32,137.29,9.47994492]
[1765508541138,7.96241982,137.32,137.28,8.80994492]
[1765508541139,0.69,137.31,137.28,8.80994492]
[1765508541529,5.14854783,137.31,137.27,8.65]
[1765508541852,5.14854783,137.31,137.27,17.45994492]
[1765508542049,0.69,137.3,137.27,9.47994492]
[1765508542627,7.97360334,137.3,137.27,9.47994492]
[1765508542828,7.28360334,137.3,137.28,9.47994492]
[1765508543024,7.97360334,137.3,137.28,8.80994492]
[1765508543450,7.28360334,137.3,137.28,8.80994492]
[1765508543634,7.97360334,137.3,137.28,8.80994492]
[1765508546354,25.48791144,137.32,137.28,9.47994492]
[1765508546551,25.48791144,137.32,137.28,8.80994492]
[1765508546741,26.17791144,137.32,137.29,0.67]
[1765508547350,26.17791144,137.32,137.28,13.26849275]
[1765508547351,0.69,137.31,137.28,9.47994492]
[1765508548256,0.69,137.31,137.28,8.80994492]
[1765508548434,7.28332119,137.3,137.28,8.80994492]
[1765508548944,7.97332119,137.3,137.28,8.80994492]
[1765508553958,0.69,137.29,137.27,0.67]
[1765508554855,7.28332119,137.3,137.27,0.67]
[1765508555062,7.97332119,137.3,137.27,5.12854783]
[1765508555458,7.97332119,137.3,137.27,4.45854783]
[1765508555663,7.97291674,137.31,137.28,0.67]
[1765508556850,7.28291674,137.31,137.28,5.12688712]
[1765508557058,7.28291674,137.31,137.29,9.47994492]
[1765508557253,0.69,137.3,137.28,8.80994492]
[1765508558161,7.28291674,137.31,137.28,8.80994492]
[1765508558355,7.28234671,137.32,137.29,0.67]
[1765508558545,7.97234671,137.32,137.29,0.67]
[1765508559063,0.69,137.31,137.29,0.67]
[1765508559565,25.48697003,137.33,137.29,0.67]
[1765508559742,0.69,137.31,137.29,0.67]
[1765508560657,7.28181652,137.33,137.29,7.95374327]
[1765508560852,7.97181652,137.33,137.3,9.47994492]
[1765508561554,0.69,137.32,137.3,9.47994492]
[1765508562950,0.69,137.32,137.3,8.80994492]
[1765508564064,0.69,137.32,137.3,9.49994492]
[1765508564269,0.69,137.32,137.3,8.80994492]
[1765508564572,12.42929199,137.32,137.27,8.80994492]
[1765508564868,30.63494302,137.32,137.27,9.49994492]
[1765508565059,0.66,137.31,137.27,9.49994492]
[1765508565256,0.66,137.31,137.28,0.69]
[1765508565560,7.94240487,137.32,137.29,8.80994492]
[1765508566065,7.94240487,137.32,137.29,9.49994492]
[1765508566437,0.66,137.31,137.29,9.49994492]
[1765508568967,7.94240487,137.32,137.29,9.49994492]
[1765508569972,0.66,137.31,137.29,8.80994492]
[1765508570670,7.28240487,137.32,137.29,8.80994492]
[1765508570856,7.28240487,137.32,137.29,9.49994492]
[1765508570857,7.94240487,137.32,137.29,9.49994492]
[1765508571265,7.28240487,137.32,137.3,0.69]
[1765508571568,7.94240487,137.32,137.3,0.69]
[1765508571768,7.94240487,137.32,137.29,9.49994492]
[1765508572762,0.66,137.31,137.29,9.49994492]
[1765508576775,7.94240487,137.32,137.29,9.49994492]
[1765508577474,0.66,137.31,137.29,9.49994492]
[1765508580562,7.94240487,137.32,137.29,9.49994492]
[1765508580759,7.28240487,137.32,137.29,9.49994492]
[1765508580958,0.66,137.31,137.29,9.49994492]
[1765508581162,15.26192897,137.33,137.3,0.69]
[1765508581359,0.66,137.32,137.3,0.69]
[1765508581684,7.94192897,137.33,137.31,8.80994492]
[1765508582356,7.28192897,137.33,137.32,0.69]
[1765508582577,7.28192897,137.33,137.31,9.49994492]
[1765508583067,7.94192897,137.33,137.31,9.49994492]
[1765508584767,7.94192897,137.33,137.31,8.80994492]
[1765508585363,7.94192897,137.33,137.31,9.49994492]
[1765508585576,7.94106443,137.35,137.32,0.69]